bitfinex-derivatives/quotes_SOLF0:USTF0_20250127
["timestamp","ask_amount","ask_price","bid_price","bid_amount"]
[1737965007471,6.06400838,227.18,227.05,39.91964837]
[1737965007667,0.02802859,227.12,227.08,0.02916615]
[1737965007871,0.02802859,227.12,227.08,6.615e-05]
[1737965008171,4.4053,227.1,226.96,39.91964837]
[1737965008373,45.98365675,227.18,226.96,39.91964837]
[1737965008563,4.4057,227.08,226.98,4.4074]
[1737965008769,4.4057,227.08,226.96,39.91964837]
[1737965009175,0.02988593,227.05,227.01,0.03330145]
[1737965012075,4.43618593,227.05,227.01,0.03330145]
[1737965012272,0.02988593,227.05,227.01,0.03330145]
[1737965013172,4.43628593,227.05,227.01,0.03330145]
[1737965013476,0.02988593,227.05,227.01,0.03330145]
[1737965013777,42.19594837,227.22,227.02,4.4068]
[1737965014072,42.19594837,227.22,227.03,2.3012]
[1737965014276,2.2763,227.22,227.04,39.91964837]
[1737965014471,39.91964837,227.3,227.08,39.91964837]
[1737965014774,39.91964837,227.3,227.09,2.0225]
[1737965014971,0.03133143,227.21,227.17,0.03341949]
[1737965015367,6.2089,227.33,227.12,39.91964837]
[1737965015876,39.91964837,227.41,227.2,39.91964837]
[1737965016072,39.91964837,227.41,227.21,4.3237]
[1737965016267,4.4,227.38,227.25,4.4023]
[1737965016573,6.06400838,227.44,227.28,39.91964837]
[1737965016875,39.91964837,227.41,227.21,4.3237]
[1737965017272,0.02920711,227.38,227.34,0.03353651]
[1737965017469,39.91964837,227.41,227.21,4.3237]
[1737965017673,39.91964837,227.37,227.21,4.3237]
[1737965018077,39.91964837,227.33,227.21,4.3237]
[1737965018575,4.4027,227.24,227.21,4.3237]
[1737965018876,39.95116249,227.29,227.13,2.0616]
[1737965019176,39.95116249,227.29,227.13,6.3354]
[1737965019378,39.91964837,227.29,227.13,6.3354]
[1737965019671,1.9535,227.35,227.13,6.3354]
[1737965019672,39.91964837,227.25,227.13,1.9048]
[1737965019874,4.4031,227.22,227.13,1.9048]
[1737965020077,1.9535,227.35,227.13,1.9048]
[1737965020078,39.91964837,227.29,227.13,1.9048]
[1737965020277,0.03338108,227.21,227.17,0.03196894]
[1737965020575,4.4036,227.19,227.17,0.03196894]
[1737965020781,39.91964837,227.2,226.99,1.9716]
[1737965020976,4.4054,227.1,227.0,1.9906]
[1737965021477,1.9708,227.19,227.0,1.9906]
[1737965022070,4.407,227.02,226.91,44.32844837]
[1737965022273,4.407,227.02,226.92,1.9906]
[1737965022682,4.4073,227.0,226.86,4.4045]
[1737965022979,39.91964837,227.05,226.86,4.4045]
[1737965023174,1.9708,227.04,226.86,4.4045]
[1737965023380,0.03293361,226.95,226.91,0.03331945]
[1737965023873,1.9708,227.04,226.91,0.03331945]
[1737965024073,0.03267897,226.95,226.91,0.03331945]
[1737965024381,39.91964837,227.09,226.87,39.91964837]
[1737965024583,0.03191129,226.95,226.87,39.91964837]
[1737965024784,39.91964837,227.05,226.91,0.03007477]
[1737965025082,39.91964837,227.05,226.86,4.4045]
[1737965025376,39.91964837,226.97,226.86,4.4045]
[1737965025578,4.4094,226.89,226.86,1.9716]
[1737965025779,39.91964837,226.93,226.77,2.3167]
[1737965025974,0.03242496,226.9,226.85,0.0318128]
[1737965026175,39.91964837,226.89,226.85,1.28e-05]
[1737965026382,4.4101,226.86,226.85,1.28e-05]
[1737965027285,0.03242496,226.9,226.85,1.28e-05]
[1737965028883,0.03242496,226.9,226.81,39.91964837]
[1737965029087,0.03242496,226.9,226.82,1.8936]
[1737965029285,1.8798,227.0,226.82,1.8936]
[1737965029689,39.91964837,226.93,226.78,2.4061]
[1737965029885,39.91964837,226.89,226.78,2.4061]
[1737965030281,39.91964837,226.93,226.78,2.4061]
[1737965030580,0.03098124,226.88,226.83,0.03357888]
[1737965031187,4.4101,226.86,226.83,0.03357888]
[1737965031382,39.91964837,226.85,226.73,1.81368]
[1737965031578,39.91964837,226.81,226.73,1.81368]
[1737965031789,4.4119,226.76,226.73,1.81368]
[1737965032087,39.91964837,226.81,226.73,1.81368]
[1737965032488,4.4015,226.87,226.73,8e-05]
[1737965032489,39.91964837,226.77,226.73,8e-05]
[1737965032690,39.91964837,226.77,226.61,3.912]
[1737965033283,39.91964837,226.73,226.61,1.9388]
[1737965033588,39.91964837,226.69,226.52,1.9069]
[1737965033780,39.91964837,226.69,226.36,13.2]
[1737965033781,4.4154,226.58,226.49,4.417]
[1737965033984,39.91964837,226.69,226.43,39.91964837]
[1737965033985,39.91964837,226.61,226.43,39.91964837]
[1737965034183,39.91964837,226.61,226.4,1.9069]
[1737965034382,39.94918038,226.65,226.43,39.91964837]
[1737965034581,39.91964837,226.65,226.43,39.91964837]
[1737965034786,4.4443,226.68,226.47,39.91964837]
[1737965035385,0.02922391,226.6,226.47,39.91964837]
[1737965035587,0.02922391,226.6,226.51,39.91964837]
[1737965035894,4.4133,226.69,226.52,4.1902]
[1737965036092,4.4133,226.69,226.53,1.8995]
[1737965036388,39.91964837,226.73,226.53,1.92771335]
[1737965036594,39.91964837,226.73,226.53,1.8995]
[1737965037389,0.03291116,226.65,226.61,0.03227655]
[1737965038093,0.03291116,226.65,226.61,7.655e-05]
[1737965038400,4.4146,226.62,226.61,7.655e-05]
[1737965039797,0.03291116,226.65,226.61,7.655e-05]
[1737965041497,0.03291116,226.65,226.61,4.41477655]
[1737965041802,4.4114,226.79,226.61,7.655e-05]
[1737965042094,2.2796,226.84,226.62,42.23724837]
[1737965042295,39.91964837,226.77,226.62,2.3176]
[1737965042493,39.91964837,226.73,226.55,4.4158]
[1737965042697,2.0446,226.72,226.53,4.2652]
[1737965042893,0.03183865,226.66,226.62,0.02891671]
[1737965043093,39.91964837,226.81,226.63,39.91964837]
[1737965043293,4.11,226.83,226.63,39.91964837]
[1737965043599,4.4112,226.8,226.69,4.4131]
[1737965043791,39.91964837,226.81,226.6,4.84]
[1737965043996,4.4121,226.75,226.6,4.84]
[1737965044200,39.91964837,226.81,226.67,4.4135]
[1737965044400,4.11,226.83,226.6,4.84]
[1737965044401,0.03007759,226.7,226.65,0.03108152]
[1737965044595,4.4113,226.8,226.68,4.4134]
[1737965044801,2.0446,226.83,226.66,2.3]
[1737965045002,39.91964837,226.89,226.67,39.91964837]
[1737965045298,2.0431,226.92,226.75,39.91964837]
[1737965045503,39.91964837,227.01,226.79,39.91964837]
[1737965045697,39.91964837,227.01,226.8,2.3]
[1737965045904,0.02793298,226.92,226.83,39.91964837]
[1737965046103,0.02793298,226.92,226.88,0.02913193]
[1737965046296,18.21021952,227.13,226.91,39.91964837]
[1737965046501,18.21021952,227.13,226.88,0.02913193]
[1737965046502,10.46890838,227.12,226.98,4.4075]
[1737965046796,10.46890838,227.12,226.88,82.56913193]
[1737965046797,39.91964837,227.11,226.92,4.88]
[1737965047003,39.91964837,227.11,226.93,4.4084]
[1737965047299,39.91964837,227.11,226.92,4.88]
[1737965047511,0.03238325,227.04,227.0,0.03270826]
[1737965048003,4.4069,227.02,227.0,0.03270826]
[1737965048305,0.03238325,227.04,227.0,0.03270826]
[1737965050403,39.91964837,227.19,227.0,0.03270826]
[1737965050798,39.91964837,227.15,226.96,2.2574]
[1737965051002,39.91964837,227.11,226.96,2.2574]
[1737965051197,39.91964837,227.07,226.89,1.8713]
[1737965051407,4.4069,227.02,226.89,3.9059]
[1737965051608,1.9900123,227.06,227.01,0.02904298]
[1737965051807,39.91964837,227.03,226.89,2.0346]
[1737965052009,39.91964837,226.99,226.79,39.91964837]
[1737965052209,39.91964837,226.99,226.8,2.0346]
[1737965052705,39.91964837,226.95,226.8,2.0346]
[1737965052897,39.91964837,226.9,226.73,2.2574]
[1737965053297,39.91964837,226.98,226.79,39.91964837]
[1737965053499,4.4091,226.91,226.8,4.411]
[1737965053704,39.91964837,226.98,226.79,39.91964837]
[1737965054304,0.03045082,226.91,226.86,4.12e-06]
[1737965054503,39.91964837,226.89,226.86,4.12e-06]
[1737965054698,41.89014837,226.93,226.73,2.2574]
[1737965054907,41.89014837,226.93,226.71,41.95424837]
[1737965055101,4.4093,226.9,226.79,4.4112]
[1737965055302,1.9705,226.93,226.75,39.91964837]
[1737965055701,0.02813175,226.85,226.8,0.03049911]
[1737965057208,4.4108,226.82,226.8,0.03049911]
[1737965057906,39.94778012,226.85,226.63,39.91964837]
[1737965058107,39.94778012,226.85,226.64,1.6386]
[1737965058307,39.91964837,226.81,226.64,1.6386]
[1737965058514,39.91964837,226.77,226.55,39.91964837]
[1737965058812,39.91964837,226.77,226.56,1.6386]
[1737965059011,4.4133,226.69,226.56,1.6386]
[1737965059207,0.02923797,226.69,226.64,0.03259025]
[1737965059712,39.94888634,226.69,226.51,82.5]
[1737965060009,39.91964837,226.69,226.51,82.5]
[1737965060508,2.2078,226.72,226.58,4.4152]
[1737965060911,0.02882056,226.67,226.51,122.41964837]
[1737965061112,0.02882056,226.67,226.6,4.4149]
[1737965061311,2.2078,226.72,226.55,39.91964837]
[1737965061512,0.03257754,226.66,226.55,39.91964837]
[1737965061717,0.03257754,226.66,226.51,82.5]
[1737965061913,4.4153,226.59,226.51,82.5]
[1737965062219,41.49494837,226.65,226.51,82.5]
[1737965062415,0.03041384,226.57,226.51,82.5]
[1737965062718,0.03041384,226.57,226.47,39.91964837]
[1737965062719,4.4169,226.51,226.26,82.52]
[1737965063016,39.91964837,226.61,226.34,5.6124]
[1737965063319,4.4154,226.58,226.41,39.91964837]
[1737965063520,41.49494837,226.65,226.41,39.91964837]
[1737965063715,41.49494837,226.65,226.45,39.91964837]
[1737965063923,4.4151,226.6,226.49,4.4171]
[1737965064220,41.49494837,226.65,226.45,39.91964837]
[1737965064619,0.0325688,226.57,226.53,0.03095816]
[1737965067421,0.0325688,226.57,226.53,5.816e-05]
[1737965067824,4.416,226.55,226.53,5.816e-05]
[1737965068523,4.4181,226.44,226.38,1.7139]
[1737965068723,4.4181,226.44,226.34,8.4222]
[1737965068724,4.4181,226.44,226.34,4.0022]
[1737965069021,39.91964837,226.42,226.25,4.4217]
[1737965069227,39.91964837,226.38,226.19,39.91964837]
[1737965069419,39.91964837,226.42,226.19,39.91964837]
[1737965069723,0.02975677,226.36,226.19,39.91964837]
[1737965069924,0.02975677,226.36,226.15,45.49154837]
[1737965070123,39.91964837,226.38,226.15,45.49154837]
[1737965070428,0.02894496,226.28,226.17,4.4233]
[1737965070624,0.02894496,226.28,226.15,45.49154837]
[1737965071126,0.02894496,226.28,226.15,5.5719]
[1737965071519,0.02894496,226.28,226.15,45.49154837]
[1737965072025,0.02894496,226.28,226.15,49.91524837]
[1737965072226,0.02894496,226.28,226.15,45.49154837]
[1737965072723,0.02894496,226.28,226.16,4.4235]
[1737965072924,0.02894496,226.28,226.15,5.5719]
[1737965073423,39.91964837,226.26,226.15,5.5719]
[1737965073626,0.02894496,226.28,226.15,5.5719]
[1737965073819,4.4205,226.32,226.16,4.4235]
[1737965074018,0.03082438,226.24,226.05,82.56]
[1737965074222,39.91964837,226.2,226.08,2.2831]
[1737965074421,39.91964837,226.16,226.08,2.2831]
[1737965074827,39.91964837,226.16,226.03,1.6463]
[1737965075028,0.03026999,226.14,225.92,8.9882]
[1737965075228,39.91964837,226.12,225.91,39.91964837]
[1737965075433,39.91964837,226.04,225.92,4.0682]
[1737965075634,39.91964837,226.0,225.82,1.6739]
[1737965075828,39.91964837,226.0,225.83,4.0682]
[1737965076126,4.427,225.99,225.76,44.83964837]
[1737965076331,0.0279282,225.94,225.77,3.459]
[1737965076724,39.91964837,226.0,225.8,39.91964837]
[1737965076929,39.91964837,226.04,225.8,39.91964837]
[1737965077228,39.91964837,225.97,225.85,4.4296]
[1737965077432,39.91964837,225.93,225.72,39.91964837]
[1737965077731,39.91964837,225.93,225.73,1.6739]
[1737965078235,39.91964837,225.97,225.76,39.91964837]
[1737965078535,39.91964837,226.04,225.8,39.91964837]
[1737965078832,0.03273216,225.89,225.84,4.4297]
[1737965079033,39.91964837,225.99,225.81,2.1879]
[1737965079335,0.03271468,225.89,225.81,2.1879]
[1737965079533,0.03271468,225.89,225.83,4.4299]
[1737965079732,39.91964837,225.99,225.8,39.91964837]
[1737965080130,0.02924872,225.88,225.85,4.4295]
[1737965080330,0.02924872,225.88,225.78,4.0336]
[1737965080528,39.91964837,225.95,225.78,4.0336]
[1737965080733,0.02997969,225.85,225.78,4.0336]
[1737965080933,0.02997969,225.85,225.72,39.91964837]
[1737965081230,0.02997969,225.85,225.83,4.43]
[1737965081427,0.02997969,225.85,225.73,5.7702]
[1737965081733,39.91964837,225.99,225.87,4.4292]
[1737965081933,39.91964837,225.95,225.73,5.7702]
[1737965082134,39.91964837,225.91,225.73,1.8457]
[1737965082338,39.91964837,225.91,225.67,122.55964837]
[1737965082532,39.91964837,225.91,225.68,1.5389]
[1737965082836,4.4287,225.9,225.68,1.5389]
[1737965083036,4.4287,225.9,225.67,122.55964837]
[1737965083239,0.02876925,225.81,225.77,0.03284352]
[1737965083637,39.91964837,225.87,225.68,1.5389]
[1737965083838,0.03089668,225.81,225.77,0.03298765]
[1737965086140,0.03089668,225.81,225.64,1.5389]
[1737965086337,0.03089668,225.81,225.68,39.91964837]
[1737965086638,39.91964837,226.0,225.73,39.91964837]
[1737965086833,39.91964837,226.04,225.81,39.91964837]
[1737965087032,39.91964837,225.99,225.82,3.5387]
[1737965087239,0.03195888,225.89,225.74,1.7008]
[1737965087535,4.4284,225.92,225.75,1.9328]
[1737965087733,39.91964837,225.95,225.75,1.9328]
[1737965087936,39.91964837,226.04,225.67,82.82]
[1737965087937,0.02895054,225.84,225.82,4.4302]
[1737965088138,39.91964837,225.99,225.76,39.91964837]
[1737965089240,39.91964837,226.04,225.8,39.91964837]
[1737965089442,0.03176843,225.9,225.85,0.02903601]
[1737965089640,0.03176843,225.9,225.81,4.9544]
[1737965089839,39.91964837,226.04,225.85,0.03008937]
[1737965090035,0.0321813,225.88,225.85,0.03008937]
[1737965090342,4.4276,225.96,225.8,39.91964837]
[1737965090542,0.02857688,225.89,225.84,0.03008937]
[1737965090744,0.02857688,225.89,225.84,39.94973774]
[1737965090939,39.91964837,226.08,225.84,39.94973774]
[1737965091149,39.91964837,226.08,225.88,39.91964837]
[1737965092245,0.02916054,226.0,225.96,0.03039582]
[1737965092636,4.4272,225.98,225.96,0.03039582]
[1737965093142,0.02916054,226.0,225.96,0.03039582]
[1737965094444,4.4248,226.1,225.98,4.427]
[1737965094743,39.91964837,226.2,225.96,39.91964837]
[1737965094936,39.91964837,226.12,225.97,1.8997]
[1737965095141,39.91964837,226.08,225.93,1.52879791]
[1737965095447,39.91964837,226.04,225.86,1.8997]
[1737965095742,39.91964837,226.0,225.8,39.91964837]
[1737965096239,39.91964837,226.04,225.8,39.91964837]
[1737965097039,39.91964837,226.04,225.76,39.91964837]
[1737965097040,39.91964837,226.0,225.76,39.91964837]
[1737965097244,0.03332679,225.94,225.76,39.91964837]
[1737965097446,0.03332679,225.94,225.86,0.03396272]
[1737965097743,39.91964837,225.96,225.86,0.03396272]
[1737965098042,0.02892067,225.92,225.86,0.03396272]
[1737965098545,0.02892067,225.92,225.76,39.91964837]
[1737965098546,39.91964837,226.0,225.76,39.91964837]
[1737965098745,0.03327051,225.91,225.87,0.02909923]
[1737965099042,39.91964837,226.04,225.8,39.91964837]
[1737965099239,39.91964837,226.04,225.84,39.91964837]
[1737965099445,39.91964837,226.08,225.87,0.02911871]
[1737965099643,39.91964837,226.08,225.88,39.91964837]
[1737965099843,4.4263,226.02,225.91,4.4283]
[1737965100040,39.91964837,226.08,225.84,39.91964837]
[1737965100339,39.91964837,226.08,225.85,1.5365]
[1737965100541,8.26830048,226.14,225.92,39.91964837]
[1737965100747,293.4679,226.19,225.86,5.26]
[1737965100748,1.4679,226.19,225.96,39.91964837]
[1737965101238,39.91964837,226.12,225.93,3.415]
[1737965101548,4.428,225.94,225.85,1.5365]
[1737965101842,39.91964837,226.04,225.89,1.8256]
[1737965102141,39.91964837,226.09,225.88,39.91964837]
[1737965102341,39.91964837,226.09,225.89,1.5894]
[1737965102547,4.4252,226.08,225.98,4.427]
[1737965102751,39.91964837,226.13,225.92,39.91964837]
[1737965102939,39.91964837,226.09,225.93,3.4405]
[1737965103138,39.91964837,226.09,225.89,4.4288]
[1737965103339,0.02822025,226.03,225.99,0.02907545]
[1737965104348,4.4266,226.01,225.99,0.02907545]
[1737965104644,0.02822025,226.03,225.99,0.02907545]
[1737965104849,72.95053608,226.27,225.99,39.94872382]
[1737965105244,72.95053608,226.27,225.99,39.91964837]
[1737965105446,39.91964837,226.25,226.03,39.91964837]
[1737965105641,39.91964837,226.21,225.99,39.91964837]
[1737965105948,39.91964837,226.17,225.95,39.91964837]
[1737965106142,0.028975,226.12,226.08,0.0310079]
[1737965106445,44.34454837,226.09,226.08,7.9e-06]
[1737965106645,39.91964837,226.09,225.91,82.82]
[1737965106843,39.91964837,226.01,225.8,39.91964837]
[1737965107041,39.91964837,225.97,225.76,39.91964837]
[1737965107445,4.4283,225.92,225.77,4.4311]
[1737965107651,0.02882815,225.89,225.84,0.02811304]
[1737965108648,4.4292,225.88,225.84,0.02811304]
[1737965108849,0.02882815,225.89,225.84,0.02811304]
[1737965109246,4.45782815,225.89,225.84,0.02811304]
[1737965109453,0.02882815,225.89,225.84,0.02811304]
[1737965110150,4.45782815,225.89,225.84,0.02811304]
[1737965110345,0.02882815,225.89,225.84,0.02811304]
[1737965111354,4.4296,225.86,225.84,1.304e-05]
[1737965113345,39.91964837,225.85,225.84,1.304e-05]
[1737965114357,4.4291,225.88,225.84,1.304e-05]
[1737965114551,0.02882815,225.89,225.84,1.304e-05]
[1737965114856,39.91964837,225.85,225.84,1.304e-05]
[1737965115451,4.4295,225.86,225.67,39.91964837]
[1737965115753,39.91964837,225.89,225.71,4.4323]
[1737965115954,39.91964837,225.85,225.63,39.91964837]
[1737965116346,3.16662945,225.84,225.63,39.91964837]
[1737965116549,39.91964837,225.89,225.67,39.91964837]
[1737965116751,0.02872541,225.76,225.71,0.03292823]
[1737965116946,0.02872541,225.76,225.67,39.91964837]
[1737965117159,0.02872541,225.76,225.71,4.4628851]
[1737965117451,0.02872541,225.76,225.71,0.0304851]
[1737965118359,0.02872541,225.76,225.75,4.4316]
[1737965118655,39.91964837,225.98,225.75,39.91964837]
[1737965118856,3.17310738,225.97,225.75,39.91964837]
[1737965119052,39.91964837,225.94,225.71,39.91964837]
[1737965119249,3.17310738,225.93,225.71,39.91964837]
[1737965119450,3.17310738,225.92,225.79,39.91964837]
[1737965119654,6.06400838,226.05,225.87,39.91964837]
[1737965119852,3.17628343,226.04,225.87,39.91964837]
[1737965120049,3.17628343,226.03,225.87,39.91964837]
[1737965120359,0.02791352,225.98,225.87,39.91964837]
[1737965120657,0.02791352,225.98,225.93,0.03103529]
[1737965121461,39.94756189,225.98,225.93,3.529e-05]
[1737965121759,39.91964837,225.94,225.93,3.529e-05]
[1737965122154,4.4278,225.95,225.93,3.529e-05]
[1737965122756,0.02791352,225.98,225.93,3.529e-05]
[1737965123159,4.4278,225.95,225.93,3.529e-05]
[1737965123557,0.02791352,225.98,225.93,3.529e-05]
[1737965124360,4.4279,225.95,225.93,3.529e-05]
[1737965124760,39.91964837,225.97,225.71,39.91964837]
[1737965125061,4.4293,225.87,225.71,39.91964837]
[1737965125357,4.4297,225.85,225.71,39.91964837]
[1737965125565,39.91964837,225.92,225.71,39.91964837]
[1737965125862,39.91964837,225.96,225.71,39.91964837]
[1737965126057,0.03128205,225.84,225.79,0.03377022]
[1737965126262,39.91964837,226.0,225.79,39.91964837]
[1737965126757,39.91964837,225.92,225.71,39.91964837]
[1737965126959,39.91964837,225.92,225.7,4.4325]
[1737965126960,4.4307,225.8,225.7,4.4325]
[1737965127162,39.91964837,225.88,225.68,66.19105789]
[1737965127363,0.0294787,225.77,225.73,0.02861925]
[1737965130256,39.91964837,225.92,225.73,0.02861925]
[1737965130763,39.91964837,225.92,225.7,39.91964837]
[1737965131065,4.4292,225.88,225.76,4.4314]
[1737965131266,39.91964837,225.96,225.74,39.91964837]
[1737965131463,0.03171633,225.84,225.8,0.02902948]
[1737965131659,39.91964837,226.0,225.8,0.02902948]
[1737965131967,6.06400838,226.07,225.85,39.91964837]
[1737965132671,39.91964837,226.12,225.89,39.91964837]
[1737965132965,8.26862728,226.13,225.94,0.03003811]
[1737965133164,3.338,226.11,225.97,39.91964837]
[1737965133362,3.338,226.11,226.0,4.4266]
[1737965133561,3.338,226.11,226.01,39.91964837]
[1737965133957,3.338,226.11,225.97,39.91964837]
[1737965134166,0.03387335,226.08,226.04,0.03197388]
[1737965134367,39.95352172,226.08,225.89,82.86]
[1737965134569,39.91964837,226.04,225.89,82.86]
[1737965134870,39.91964837,226.0,225.89,82.86]
[1737965135167,4.8818,225.99,225.81,39.91964837]
[1737965135365,4.8818,225.99,225.78,71.5629672]
[1737965135567,0.03371821,225.92,225.88,0.0293241]
[1737965138866,4.8818,225.99,225.89,39.91964837]
[1737965139067,4.8818,225.99,225.88,0.0293241]
[1737965139470,4.4274,225.97,225.88,0.0293241]
[1737965140072,0.03359817,225.95,225.88,0.0293241]
[1737965140776,0.03359817,225.95,225.89,39.91964837]
[1737965141366,0.03359817,225.95,225.93,4.428]
[1737965141665,9.817e-05,225.95,225.93,44.34764837]
[1737965141865,4.8818,225.99,225.93,39.91964837]
[1737965142073,105.79015841,226.23,225.97,39.91964837]
[1737965142273,105.79015841,226.23,226.02,39.91964837]
[1737965142466,4.4235,226.17,226.06,4.4255]
[1737965142673,105.79015841,226.23,226.02,39.91964837]
[1737965142970,4.4241,226.14,225.98,39.91964837]
[1737965143174,0.03143867,226.15,226.1,3.231e-05]
[1737965143369,0.03143867,226.15,225.95,5.38]
[1737965143571,4.4263,226.03,225.92,4.4281]
[1737965143874,39.91964837,226.07,225.86,39.91964837]
[1737965144070,39.91964837,226.03,225.83,4.4299]
[1737965144374,39.91964837,225.97,225.74,39.91964837]
[1737965144574,4.429,225.89,225.78,4.431]
[1737965144773,39.91964837,225.93,225.7,39.91964837]
[1737965144969,39.91964837,225.98,225.75,39.91964837]
[1737965145171,292.0,226.05,225.7,39.91964837]
[1737965145366,39.91964837,226.07,225.7,39.91964837]
[1737965145367,39.91964837,225.94,225.71,0.78199408]
[1737965145578,39.91964837,225.98,225.74,39.91964837]
[1737965145873,0.02812108,225.87,225.82,0.03254656]
[1737965146267,39.91964837,225.98,225.74,39.91964837]
[1737965146472,39.91964837,226.07,225.82,0.0305026]
[1737965146473,39.91964837,225.94,225.82,0.0305026]
[1737965146672,0.02905144,225.87,225.82,0.0305026]
[1737965146873,4.4285,225.91,225.79,4.4307]
[1737965147178,0.0323234,225.87,225.82,0.03282601]
[1737965150973,4.43,225.83,225.82,0.03282601]
[1737965151169,0.0323234,225.87,225.82,0.03282601]
[1737965151679,4.4299,225.84,225.82,0.03282601]
[1737965151971,0.0323234,225.87,225.82,0.03282601]
[1737965153079,0.0323234,225.87,225.77,39.91964837]
[1737965153377,0.0323234,225.87,225.85,4.4296]
[1737965153678,0.0323234,225.87,225.77,39.91964837]
[1737965153878,0.0323234,225.87,225.73,39.91964837]
[1737965154277,39.91964837,225.95,225.78,0.03256862]
[1737965154478,4.4285,225.92,225.82,4.4302]
[1737965154678,4.4285,225.92,225.77,39.91964837]
[1737965154978,0.02813968,225.89,225.84,0.03128913]
[1737965155375,39.91964837,225.99,225.77,39.91964837]
[1737965155570,0.03282326,225.89,225.84,0.03358943]
[1737965155875,39.91964837,225.95,225.78,4.431]
[1737965156075,0.03387007,225.89,225.84,0.03394991]
[1737965158075,0.03387007,225.89,225.85,4.4296]
[1737965158277,0.03387007,225.89,225.84,0.03394991]
[1737965158678,0.03387007,225.89,225.88,4.4291]
[1737965159482,39.91964837,226.07,225.85,39.91964837]
[1737965159679,4.4279,225.95,225.84,0.03394991]
[1737965159879,39.91964837,226.03,225.81,45.23964837]
[1737965160380,4.4279,225.95,225.81,45.23964837]
[1737965160581,0.03088298,225.94,225.9,0.03032234]
[1737965161085,39.91964837,226.03,225.82,39.91964837]
[1737965161279,0.0322837,225.94,225.9,0.02823803]
[1737965161778,39.91964837,226.03,225.9,0.02823803]
[1737965161982,0.02942251,225.94,225.9,0.02823803]
[1737965162280,39.95160007,225.94,225.9,3.803e-05]
[1737965162483,39.95160007,225.94,225.7,39.91964837]
[1737965162675,39.91964837,225.87,225.66,39.91964837]
[1737965162877,39.91964837,225.87,225.67,87.2931]
[1737965163078,39.91964837,225.87,225.67,82.86]
[1737965163479,292.0,225.93,225.67,82.86]
[1737965163685,39.91964837,225.94,225.74,39.91964837]
[1737965163885,39.91964837,225.98,225.75,0.02989097]
[1737965164182,39.91964837,225.94,225.74,39.91964837]
[1737965164480,39.91964837,225.98,225.77,39.91964837]
[1737965164675,39.91964837,226.02,225.82,39.91964837]
[1737965164879,39.91964837,226.06,225.86,39.91964837]
[1737965165082,0.02844257,225.94,225.9,0.03069279]
[1737965165381,39.91964837,226.1,225.86,39.91964837]
[1737965165579,4.4266,226.01,225.9,4.4286]
[1737965165877,0.02850122,225.94,225.9,4.4286]
[1737965166083,0.02850122,225.94,225.86,39.91964837]
[1737965166274,0.02850122,225.94,225.93,0.02817447]
[1737965166478,0.02850122,225.94,225.9,39.91964837]
[1737965166674,39.91964837,226.1,225.91,0.03130787]
[1737965167081,39.91964837,226.1,225.9,39.91964837]
[1737965167280,4.4256,226.06,225.92,4.4282]
[1737965167487,39.91964837,226.06,225.86,39.91964837]
[1737965168088,39.91964837,226.1,225.86,39.91964837]
[1737965168389,0.03362152,225.98,225.94,0.02801991]
[1737965168891,8.26837545,226.14,225.94,0.02801991]
[1737965168892,8.26837545,226.14,225.95,39.91964837]
[1737965169190,8.26837545,226.14,225.91,39.91964837]
[1737965169584,8.26837545,226.14,225.96,39.91964837]
[1737965169886,292.0,226.26,225.96,39.91964837]
[1737965170087,0.03402504,226.07,226.03,0.02941082]
[1737965170284,4.4235,226.17,226.03,0.02941082]
[1737965170587,39.91964837,226.24,226.04,39.91964837]
[1737965170781,39.91964837,226.24,226.08,4.4251]
[1737965170983,1.5051,226.27,226.04,39.91964837]
[1737965171386,1.5051,226.27,226.05,1.4754]
[1737965171582,0.03093781,226.18,226.13,0.03392317]
[1737965171883,0.03093781,226.18,226.08,39.91964837]
[1737965172080,0.03093781,226.18,226.09,1.6278]
[1737965172285,0.03093781,226.18,226.13,0.029547]
[1737965172580,6.06400838,226.39,226.13,0.029547]
[1737965172889,1.5051,226.35,226.12,39.91964837]
[1737965173089,1.5051,226.35,226.16,39.91964837]
[1737965173288,7.27120838,226.39,226.24,39.91964837]
[1737965173289,6.06400838,226.39,226.24,39.91964837]
[1737965173784,39.91964837,226.36,226.16,39.91964837]
[1737965173989,0.0282158,226.34,226.29,0.03299798]
[1737965174291,1.5051,226.42,226.22,39.91964837]
[1737965174486,0.03179166,226.34,226.29,0.03187757]
[1737965175088,1.5724,226.51,226.3,39.91964837]
[1737965175593,1.5724,226.51,226.31,1.5033]
[1737965176489,0.02872983,226.43,226.39,0.03338291]
[1737965179199,4.4167,226.52,226.4,4.4189]
[1737965179502,1.3825,226.59,226.42,39.91964837]
[1737965179894,1.3825,226.59,226.38,39.91964837]